bitfinex/quotes_BTCUSD_20250719
["timestamp","ask_amount","ask_price","bid_price","bid_amount"]
[1752887224714,0.65705037,117710.0,117700.0,0.002908]
[1752887225180,0.65905037,117710.0,117700.0,0.003908]
[1752887225398,0.72865037,117710.0,117700.0,0.003908]
[1752887230618,0.95595904,117710.0,117700.0,0.003908]
[1752887231046,0.81440999,117710.0,117700.0,0.003908]
[1752887238414,1.04171866,117710.0,117700.0,0.003908]
[1752887238620,0.81440999,117710.0,117700.0,0.003908]
[1752887239069,0.72865037,117710.0,117700.0,0.003908]
[1752887240097,0.403631,117710.0,117700.0,0.003908]
[1752887240352,0.38268505,117710.0,117700.0,0.42662785]
[1752887240581,0.03418982,117710.0,117700.0,0.42662785]
[1752887240813,0.0256948,117710.0,117700.0,0.42662785]
[1752887241285,0.002,117710.0,117700.0,0.44202785]
[1752887242172,0.01049494,117710.0,117700.0,0.44202785]
[1752887242401,0.01899003,117710.0,117700.0,0.44202785]
[1752887242821,0.01898996,117710.0,117700.0,0.44202785]
[1752887243050,0.01049487,117710.0,117700.0,0.44202785]
[1752887243301,0.02748505,117710.0,117700.0,0.21471918]
[1752887243481,0.04288505,117710.0,117700.0,0.42662785]
[1752887243734,0.03438982,117710.0,117700.0,0.42662785]
[1752887243958,0.04288491,117710.0,117700.0,0.42662785]
[1752887244446,0.002,117710.0,117700.0,0.44272785]
[1752887245993,0.01049487,117710.0,117700.0,0.44272785]
[1752887246428,0.03742989,117710.0,117700.0,0.49626785]
[1752887246648,0.02893487,117710.0,117700.0,0.49626785]
[1752887246874,0.03742981,117710.0,117700.0,0.49626785]
[1752887247431,0.03742981,117710.0,117700.0,0.26895918]
[1752887247647,0.03742981,117710.0,117700.0,0.49626785]
[1752887247923,0.0459249,117710.0,117700.0,0.49626785]
[1752887248368,0.03742981,117710.0,117700.0,0.49626785]
[1752887248595,0.02893487,117710.0,117700.0,0.49626785]
[1752887249443,0.02044,117710.0,117700.0,0.49626785]
[1752887249659,0.0174,117710.0,117700.0,0.49626785]
[1752887250100,0.0258948,117710.0,117700.0,0.49626785]
[1752887250544,0.0174,117710.0,117700.0,0.49626785]
[1752887251461,0.002,117710.0,117700.0,0.49626785]
[1752887251664,0.002,117710.0,117700.0,0.61233898]
[1752887251891,0.002,117710.0,117700.0,0.84034765]
[1752887252317,0.02379264,117740.0,117730.0,0.19536138]
[1752887252518,0.0153,117740.0,117730.0,0.49219005]
[1752887252733,0.03228556,117740.0,117730.0,0.49219005]
[1752887253357,0.03532556,117740.0,117730.0,0.49219005]
[1752887253569,0.0153,117740.0,117730.0,0.49219005]
[1752887253779,0.10940857,117750.0,117740.0,0.19534479]
[1752887253982,0.11790077,117750.0,117740.0,0.42265346]
[1752887254406,0.12639319,117750.0,117740.0,0.42265346]
[1752887254645,0.13488568,117750.0,117740.0,0.42265353]
[1752887254920,0.14337824,117750.0,117740.0,0.42265353]
[1752887255113,0.13488568,117750.0,117740.0,0.43129558]
[1752887255348,0.12639319,117750.0,117740.0,0.43229558]
[1752887255565,0.03712426,117750.0,117740.0,0.43229558]
[1752887255783,0.04561647,117750.0,117740.0,0.43229558]
[1752887255996,0.04561639,117750.0,117740.0,0.43229558]
[1752887256217,0.03712419,117750.0,117740.0,0.43229558]
[1752887256873,0.04561647,117750.0,117740.0,0.43229558]
[1752887257807,0.05410889,117750.0,117740.0,0.20498691]
[1752887258036,0.05410889,117750.0,117740.0,0.43229558]
[1752887258505,0.02863206,117750.0,117740.0,0.43229558]
[1752887258946,0.02559199,117750.0,117740.0,0.43229558]
[1752887259170,0.03408412,117750.0,117740.0,0.43229558]
[1752887259385,0.04257632,117750.0,117740.0,0.43229558]
[1752887259597,0.05410867,117750.0,117740.0,0.43229558]
[1752887259813,0.04561632,117750.0,117740.0,0.43229558]
[1752887260030,0.05410874,117750.0,117740.0,0.43229558]
[1752887260488,0.06071632,117750.0,117740.0,0.43229558]
[1752887260908,0.224216,117750.0,117740.0,0.29813794]
[1752887261171,0.224216,117750.0,117740.0,0.4934831]
[1752887261601,0.224216,117750.0,117740.0,0.51046873]
[1752887261602,0.05436462,117750.0,117740.0,0.51046873]
[1752887261823,0.06285718,117750.0,117740.0,0.51046873]
[1752887262235,0.06285718,117750.0,117740.0,0.4934831]
[1752887262662,0.23270856,117750.0,117740.0,0.4934831]
[1752887262882,0.22421636,117750.0,117740.0,0.4849901]
[1752887263108,0.22421636,117750.0,117740.0,0.48499024]
[1752887263335,0.22421636,117750.0,117740.0,0.50197623]
[1752887263549,0.22421636,117750.0,117740.0,0.50193623]
[1752887263765,0.22421636,117750.0,117740.0,0.50193631]
[1752887264037,0.21572394,117750.0,117740.0,0.30659123]
[1752887264271,0.21572394,117750.0,117740.0,0.00114927]
[1752887264484,0.20723138,117750.0,117740.0,0.29805794]
[1752887264925,0.20723138,117750.0,117740.0,0.46792374]
[1752887265132,0.20723138,117750.0,117740.0,0.47641703]
[1752887265546,0.20723138,117750.0,117740.0,0.30655123]
[1752887265968,0.23356127,117750.0,117740.0,0.00114927]
[1752887266176,0.20723138,117750.0,117740.0,0.07074927]
[1752887267687,0.20723138,117750.0,117740.0,0.00114927]
[1752887267915,0.84231656,117750.0,117740.0,0.00114927]
[1752887268154,0.92782684,117750.0,117740.0,0.00114927]
[1752887268365,1.01358646,117750.0,117740.0,0.00114927]
[1752887270503,0.18689977,117710.0,117700.0,0.002908]
[1752887270702,0.21923977,117710.0,117700.0,0.29984594]
[1752887271082,0.22227977,117710.0,117700.0,0.29984594]
[1752887272516,0.22227977,117710.0,117700.0,0.47826557]
[1752887272978,0.22327977,117710.0,117700.0,0.48026557]
[1752887273203,0.22327977,117710.0,117700.0,0.49725741]
[1752887273426,0.22327977,117710.0,117700.0,0.49725756]
[1752887273651,0.22327977,117710.0,117700.0,0.4887616]
[1752887274155,0.22327977,117710.0,117700.0,0.48026557]
[1752887274365,0.22327977,117710.0,117700.0,0.48876153]
[1752887276091,0.22327977,117710.0,117700.0,0.49725734]
[1752887276494,0.05337025,117710.0,117700.0,0.49725734]
[1752887276741,0.04158556,117710.0,117700.0,0.50575301]
[1752887277374,0.0415849,117710.0,117700.0,0.50575301]
[1752887277590,0.05857559,117710.0,117700.0,0.27844434]
[1752887277803,0.06167559,117710.0,117700.0,0.50575301]
[1752887278474,0.06167559,117710.0,117700.0,0.27844434]
[1752887278680,0.06167624,117710.0,117700.0,0.50575301]
[1752887278885,0.07727624,117710.0,117700.0,0.50575301]
[1752887279097,0.06878079,117710.0,117700.0,0.50575301]
[1752887279321,0.06878079,117710.0,117700.0,0.50575308]
[1752887279540,0.07088079,117710.0,117700.0,0.49725734]
[1752887279759,0.07937624,117710.0,117700.0,0.50575308]
[1752887280169,0.07937624,117710.0,117700.0,0.51424875]
[1752887280418,0.0708813,117710.0,117700.0,0.50575308]
[1752887280649,0.22379992,117710.0,117700.0,0.48876153]
[1752887280884,0.21530454,117710.0,117700.0,0.30184594]
[1752887281097,0.20680909,117710.0,117700.0,0.31883821]
[1752887281322,0.2153044,117710.0,117700.0,0.49725777]
[1752887281546,0.0538904,117710.0,117700.0,0.51424897]
[1752887281778,0.05388996,117710.0,117700.0,0.51424897]
[1752887282006,0.06238527,117710.0,117700.0,0.51424897]
[1752887282964,0.05178982,117710.0,117700.0,0.51424897]
[1752887283221,0.001,117710.0,117700.0,0.51424897]
[1752887283437,0.001,117710.0,117700.0,0.61515925]
[1752887283651,0.001,117710.0,117700.0,0.85880877]
[1752887284082,0.001,117710.0,117700.0,0.6315001]
[1752887284294,0.001,117710.0,117700.0,0.85880877]
[1752887285443,0.001,117710.0,117700.0,0.6296201]
[1752887285893,0.001,117710.0,117700.0,0.85692877]
[1752887287039,0.001,117710.0,117700.0,0.85872877]
[1752887288604,0.001,117710.0,117700.0,0.85868877]
[1752887290219,0.001,117710.0,117700.0,0.40407143]
[1752887290428,0.001,117710.0,117700.0,0.85868877]
[1752887294785,0.001,117710.0,117700.0,0.86868877]
[1752887295657,0.001,117710.0,117700.0,0.79932877]
[1752887295874,0.0171,117710.0,117700.0,0.85128877]
[1752887297543,0.001,117710.0,117700.0,0.85128877]
[1752887297777,0.001,117710.0,117700.0,0.86818877]
[1752887298027,0.001,117710.0,117700.0,2.51566443]
[1752887298274,0.001,117710.0,117700.0,2.07917476]
[1752887298478,0.001,117710.0,117700.0,2.01047576]
[1752887298677,0.001,117710.0,117700.0,1.30818876]
[1752887298893,0.001,117710.0,117700.0,2.11668376]
[1752887300188,0.0161,117730.0,117720.0,0.20991883]
[1752887300408,0.0161,117730.0,117720.0,0.81912645]
[1752887300894,0.0349,117730.0,117720.0,0.81912645]
[1752887301910,0.0349,117730.0,117720.0,0.82012645]
[1752887303896,0.0192,117730.0,117720.0,0.82012645]
[1752887304167,0.0161,117730.0,117720.0,0.82012645]
[1752887304843,0.0163,117740.0,117730.0,0.19536138]
[1752887305098,0.0163,117740.0,117730.0,0.804809]
[1752887306251,0.0163,117740.0,117730.0,0.81934985]
[1752887306496,0.09937651,117750.0,117740.0,0.19534479]
[1752887306717,0.0166,117750.0,117740.0,0.81933326]
[1752887307892,0.0176,117750.0,117740.0,0.81948235]
[1752887308143,0.0166,117750.0,117740.0,0.81948235]
[1752887308377,0.0166,117750.0,117740.0,0.82048235]
[1752887309839,0.0314,117760.0,117750.0,0.19532821]
[1752887310043,0.0151,117760.0,117750.0,0.81931668]
[1752887311567,0.0171,117760.0,117750.0,0.81931668]
[1752887312422,0.0171,117760.0,117750.0,1.04662535]
[1752887312666,0.002,117760.0,117750.0,1.04662535]
[1752887312902,0.002,117760.0,117750.0,1.06192535]
[1752887313134,0.0151,117770.0,117760.0,0.19531161]
[1752887313361,0.0151,117770.0,117760.0,0.80495923]
[1752887313800,0.03445,117770.0,117760.0,0.80495923]
[1752887314221,0.0151,117770.0,117760.0,0.80495923]
[1752887314438,0.0151,117770.0,117760.0,0.81950008]
[1752887315094,0.0161,117770.0,117760.0,0.81950008]
[1752887315552,0.0161,117770.0,117760.0,0.81946008]
[1752887319460,0.001,117770.0,117760.0,0.83586008]
[1752887319899,0.0162,117770.0,117760.0,0.81946008]
[1752887320980,0.001,117770.0,117760.0,0.81946008]
[1752887321404,0.03385,117780.0,117770.0,0.19529503]
[1752887321630,0.03385,117780.0,117770.0,0.80482265]
[1752887322050,0.03284067,117800.0,117790.0,0.19526188]
[1752887322275,0.03482067,117800.0,117790.0,0.49193055]
[1752887322513,0.02633236,117800.0,117790.0,0.49193055]
[1752887322781,0.04458236,117800.0,117790.0,0.49193055]
[1752887322972,0.03583,117800.0,117790.0,0.49193055]
[1752887323421,0.03583,117800.0,117790.0,0.49207964]
[1752887323848,0.03583,117800.0,117790.0,0.57758992]
[1752887324943,0.03983,117800.0,117790.0,0.57858992]
[1752887325145,0.03583,117800.0,117790.0,0.57758992]
[1752887325592,0.03783,117800.0,117790.0,0.57758992]
[1752887326251,0.04631831,117800.0,117790.0,0.35028125]
[1752887326484,0.03783,117800.0,117790.0,0.35028125]
[1752887326756,0.04631831,117800.0,117790.0,0.57758992]
[1752887327209,0.06329529,117800.0,117790.0,0.49203964]
[1752887327432,0.07178403,117800.0,117790.0,0.49203964]
[1752887327862,0.06329529,117800.0,117790.0,0.49203964]
[1752887328105,0.06329522,117800.0,117790.0,0.42271964]
[1752887328321,0.06329522,117800.0,117790.0,0.49203964]
[1752887328534,0.06329514,117800.0,117790.0,0.49203964]
[1752887329187,0.08027256,117800.0,117790.0,0.49203964]
[1752887329629,0.25005242,117800.0,117790.0,0.41423046]
[1752887329851,0.24156404,117800.0,117790.0,0.48355046]
[1752887330559,0.24156404,117800.0,117790.0,0.49203978]
[1752887330778,0.250053,117800.0,117790.0,0.49203978]
[1752887331027,0.06329587,117800.0,117790.0,0.50052896]
[1752887331260,0.07178483,117800.0,117790.0,0.49203978]
[1752887331487,0.06329587,117800.0,117790.0,0.50052896]
[1752887333944,0.07178476,117800.0,117790.0,0.27322029]
[1752887334152,0.06329587,117800.0,117790.0,0.50052896]
[1752887334637,0.05480705,117800.0,117790.0,0.50052896]
[1752887335311,0.04631845,117800.0,117790.0,0.50052896]
[1752887335985,0.05480705,117800.0,117790.0,0.50052896]
[1752887336448,0.03783,117800.0,117790.0,0.50052896]
[1752887337307,0.03585,117800.0,117790.0,0.58603924]
[1752887339023,0.03783,117800.0,117790.0,0.35873057]
[1752887339251,0.03783,117800.0,117790.0,0.58603924]
[1752887342435,0.002,117800.0,117790.0,0.82874791]
[1752887342659,0.002,117800.0,117790.0,0.81334791]
[1752887342909,0.0181,117800.0,117790.0,0.81334791]
[1752887343345,0.0161,117800.0,117790.0,0.81334791]
[1752887343568,0.0322,117810.0,117800.0,0.19524529]
[1752887343777,0.0322,117810.0,117800.0,0.80421291]
[1752887343955,0.03521,117810.0,117800.0,0.80421291]
[1752887346079,0.0322,117810.0,117800.0,0.80421291]
[1752887346321,0.0161,117810.0,117800.0,0.80421291]
[1752887347011,0.03308,117820.0,117810.0,0.19522872]
[1752887347276,0.03308,117820.0,117810.0,0.80411634]
[1752887347476,0.03609,117820.0,117810.0,0.80411634]
[1752887348998,0.03807,117820.0,117810.0,0.80411634]
[1752887349434,0.04007,117820.0,117810.0,0.80411634]
[1752887352307,0.03809,117820.0,117810.0,0.80411634]
[1752887352531,0.03508,117820.0,117810.0,0.80411634]
[1752887352763,0.01898,117820.0,117810.0,0.80411634]
[1752887354822,0.01898,117820.0,117810.0,0.81865719]
[1752887355046,0.00348,117820.0,117810.0,1.06246586]
[1752887355320,0.00348,117820.0,117810.0,0.83515719]
[1752887355554,0.00148,117820.0,117810.0,1.06246586]
[1752887355790,0.00248,117820.0,117810.0,1.06246586]
[1752887356469,1e-08,117820.0,117810.0,2.11615885]
[1752887356698,1e-08,117820.0,117810.0,2.16615885]
[1752887357151,0.0004,117830.0,117820.0,0.549753]
[1752887357376,0.0004,117830.0,117820.0,0.70390328]
[1752887357644,0.0004,117830.0,117820.0,1.15852062]
[1752887358519,0.0004,117830.0,117820.0,1.17512062]
[1752887359814,0.0004,117830.0,117820.0,1.17712062]
[1752887361838,1e-08,117830.0,117820.0,2.01226662]
[1752887362065,1e-08,117830.0,117820.0,2.06226661]
[1752887362282,1e-08,117830.0,117820.0,2.11226661]
[1752887362509,1e-08,117830.0,117820.0,2.12796661]
[1752887363162,1e-08,117830.0,117820.0,2.35527528]
[1752887364650,1e-08,117830.0,117820.0,2.12796661]
[1752887365091,1e-08,117830.0,117820.0,2.12592661]
[1752887365350,1e-08,117830.0,117820.0,2.12892661]
[1752887368070,1e-08,117830.0,117820.0,2.35623528]
[1752887368788,1e-08,117840.0,117830.0,0.29519558]
[1752887368977,1e-08,117840.0,117830.0,5.59661972]
[1752887369222,1e-08,117840.0,117830.0,5.53049172]
[1752887369706,1e-08,117840.0,117830.0,5.55596172]
[1752887369927,1e-08,117840.0,117830.0,5.55796172]
[1752887370159,0.0155,117860.0,117850.0,0.43701198]
[1752887370378,0.0155,117860.0,117850.0,0.69307135]
[1752887370957,0.0313,117860.0,117850.0,0.69307135]
[1752887371624,0.0155,117860.0,117850.0,0.69307135]
[1752887373386,0.0155,117860.0,117850.0,0.70159807]
[1752887374290,0.0155,117860.0,117850.0,0.92890674]
[1752887376315,0.0155,117860.0,117850.0,1.26890674]
[1752887377430,0.0155,117860.0,117850.0,1.20030674]
[1752887377648,0.03556,117860.0,117850.0,1.26874674]
[1752887378096,0.03556,117860.0,117850.0,0.7456894]
[1752887378318,0.03556,117860.0,117850.0,1.26874674]
[1752887379883,0.0155,117860.0,117850.0,1.26874674]
[1752887380106,0.0004,117860.0,117850.0,1.37123574]
[1752887380811,0.0155,117860.0,117850.0,1.37123574]
[1752887381261,0.0155,117860.0,117850.0,1.38548174]
[1752887384783,0.031,117860.0,117850.0,1.26874674]
[1752887385001,0.034,117860.0,117850.0,1.26874674]
[1752887385215,0.034,117860.0,117850.0,1.26854674]
[1752887386323,0.0155,117860.0,117850.0,1.54801474]
[1752887386583,0.0155,117860.0,117850.0,1.55101474]
[1752887386823,0.0155,117860.0,117850.0,1.27154674]
[1752887387366,0.0341,117860.0,117850.0,1.27154674]
[1752887387643,0.0341,117860.0,117850.0,1.20330674]
[1752887387849,0.0341,117860.0,117850.0,1.27154674]
[1752887389000,0.0341,117860.0,117850.0,0.8169294]
[1752887389228,0.0341,117860.0,117850.0,1.27154674]
[1752887390164,0.0341,117860.0,117850.0,1.37761874]
[1752887390624,0.0155,117860.0,117850.0,1.37761874]
[1752887392416,0.0155,117860.0,117850.0,1.27154674]
[1752887392644,0.0155,117860.0,117850.0,1.39054274]
[1752887397624,1e-08,117860.0,117850.0,1.39054274]
[1752887397842,1e-08,117860.0,117850.0,1.39050274]
[1752887399184,1e-08,117860.0,117850.0,1.7493114]
[1752887399609,1e-08,117860.0,117850.0,1.7747764]
[1752887399830,0.01925,117880.0,117870.0,0.02545089]
[1752887400063,0.01925,117880.0,117870.0,1.53288661]
[1752887400311,0.01925,117880.0,117870.0,1.03076563]
[1752887401214,0.02133,117880.0,117870.0,1.03076563]
[1752887401463,0.02133,117880.0,117870.0,0.73525696]
[1752887401686,0.02133,117880.0,117870.0,0.34883962]
[1752887401928,0.02133,117880.0,117870.0,0.73525696]
[1752887402141,0.02133,117880.0,117870.0,0.73625696]
[1752887402617,0.22492563,117880.0,117870.0,0.4234383]
[1752887402856,0.57145176,117880.0,117850.0,0.02561409]
[1752887403067,0.0655374,117860.0,117850.0,0.26385183]
[1752887403310,0.24056025,117860.0,117850.0,0.48233536]
[1752887403540,0.23207619,117860.0,117850.0,0.48233536]
[1752887403801,0.05389906,117860.0,117850.0,0.47385022]
[1752887404031,0.0623832,117860.0,117850.0,0.48233529]
[1752887404269,0.23207605,117860.0,117850.0,0.24654155]
[1752887404520,0.20662285,117860.0,117850.0,0.22845776]
[1752887404706,0.20662285,117860.0,117850.0,0.29669776]
[1752887405142,0.20762285,117860.0,117850.0,0.29569776]
[1752887405351,0.20662285,117860.0,117850.0,0.30418312]
[1752887405575,0.06238297,117860.0,117850.0,0.49934558]
[1752887405792,0.06438297,117860.0,117850.0,0.49934558]
[1752887406000,0.05589848,117860.0,117850.0,0.49934558]
[1752887406206,0.03893,117860.0,117850.0,0.49934558]
[1752887406434,0.03893,117860.0,117850.0,0.74392453]
[1752887406670,0.03893,117860.0,117850.0,0.81220453]
[1752887407575,0.03893,117860.0,117850.0,0.58489586]
[1752887407792,0.03893,117860.0,117850.0,0.81320453]
[1752887408231,0.03693,117860.0,117850.0,0.81320453]
[1752887408664,0.03793,117860.0,117850.0,0.81320453]
[1752887410903,0.03793,117860.0,117850.0,0.58589586]
[1752887411556,0.04641406,117860.0,117850.0,0.58589586]
[1752887411832,0.03793,117860.0,117850.0,0.58589586]
[1752887414720,0.03793,117860.0,117850.0,0.51761586]
[1752887414920,0.03793,117860.0,117850.0,0.58593586]
[1752887416596,0.03793,117860.0,117850.0,0.51761586]
[1752887416821,0.04641413,117860.0,117850.0,0.58593586]
[1752887417040,0.03793,117860.0,117850.0,0.58593586]
[1752887417881,0.06338297,117860.0,117850.0,0.51761586]
[1752887418088,0.05489848,117860.0,117850.0,0.43210558]
[1752887418293,0.05489841,117860.0,117850.0,0.50034558]
[1752887419130,0.03793,117860.0,117850.0,0.50034558]
[1752887419332,0.04641413,117860.0,117850.0,0.50034558]
[1752887419760,0.05489848,117860.0,117850.0,0.50034558]
[1752887419971,0.04641413,117860.0,117850.0,0.50034558]
[1752887420212,0.06338276,117860.0,117850.0,0.27303691]
[1752887420431,0.05489841,117860.0,117850.0,0.50034558]
[1752887420898,0.06338283,117860.0,117850.0,0.50034558]
[1752887421065,0.0718674,117860.0,117850.0,0.50034558]
[1752887421292,0.26656334,117860.0,117850.0,0.50034573]
[1752887421442,0.24156025,117860.0,117850.0,0.43210573]
[1752887421644,0.05489841,117860.0,117850.0,0.50883015]
[1752887421863,0.0633829,117860.0,117850.0,0.50883015]
[1752887422291,0.07186747,117860.0,117850.0,0.50883015]
[1752887423456,0.05489841,117860.0,117850.0,0.50883015]
[1752887423667,0.06338283,117860.0,117850.0,0.50883015]
[1752887423983,0.05489841,117860.0,117850.0,0.50883015]
[1752887424521,0.0633829,117860.0,117850.0,0.50883015]
[1752887425158,0.05489841,117860.0,117850.0,0.50883015]
[1752887425366,0.06338283,117860.0,117850.0,0.50883015]
[1752887426099,0.07186732,117860.0,117850.0,0.50883015]
[1752887426314,0.08035189,117860.0,117850.0,0.28152148]
[1752887426575,0.23307633,117860.0,117850.0,0.48337537]
[1752887426789,0.22459191,117860.0,117850.0,0.48337551]
[1752887427012,0.21610742,117860.0,117850.0,0.48337551]
[1752887427449,0.21610742,117860.0,117850.0,0.49186065]
[1752887427671,0.21610742,117860.0,117850.0,0.29669776]
[1752887427914,0.21610742,117860.0,117850.0,0.00114909]
[1752887428116,0.21610742,117860.0,117850.0,0.06938909]
[1752887428344,0.21610742,117860.0,117850.0,0.29669776]
[1752887428566,0.21610742,117860.0,117850.0,0.06938909]
[1752887428775,0.21610742,117860.0,117850.0,0.29669776]
[1752887429936,0.6801964,117860.0,117850.0,0.00114909]
[1752887430180,0.6801964,117860.0,117850.0,0.06942909]
[1752887430834,0.6416177,117860.0,117850.0,0.06942909]
[1752887431493,0.6416177,117860.0,117850.0,0.06842909]
[1752887432489,0.6406177,117860.0,117850.0,0.06842909]
[1752887432904,0.6426177,117860.0,117850.0,0.06842909]
[1752887433119,0.55710742,117860.0,117850.0,0.30422297]
[1752887433488,0.56579304,117860.0,117850.0,0.29573776]
[1752887433896,0.56579304,117860.0,117850.0,0.30422312]
[1752887434336,0.55730847,117860.0,117850.0,0.29573776]
[1752887434518,0.59388205,117860.0,117850.0,0.29569776]
[1752887437546,0.59388205,117860.0,117850.0,0.06838909]
[1752887437757,0.59388205,117860.0,117850.0,0.29569776]
[1752887438818,0.55730847,117860.0,117850.0,0.29569776]
[1752887439229,0.55730847,117860.0,117850.0,0.06838909]
[1752887439453,0.55730847,117860.0,117850.0,0.29569776]
[1752887439661,0.55730847,117860.0,117850.0,0.22745776]
[1752887439872,0.55730847,117860.0,117850.0,0.29569776]
[1752887440073,0.6324951,117860.0,117850.0,0.29569776]
[1752887440960,0.55730847,117860.0,117850.0,0.29569776]
[1752887441963,0.55730847,117860.0,117850.0,0.30418312]
[1752887442364,0.0336,117860.0,117850.0,0.49934529]
[1752887442524,0.0176,117860.0,117850.0,0.5676218]
[1752887444162,0.0156,117860.0,117850.0,0.5676218]
[1752887444605,0.01825,117870.0,117860.0,0.1951459]
[1752887444814,0.03546,117870.0,117860.0,0.42245457]
[1752887445033,0.03335,117870.0,117860.0,0.65026324]
[1752887445870,0.00295,117870.0,117860.0,0.65026324]
[1752887446196,0.04624334,117870.0,117860.0,0.65026324]
[1752887446408,0.05472675,117870.0,117860.0,0.42295457]
[1752887446675,0.06321024,117870.0,117860.0,0.42295457]
[1752887446967,0.05472675,117870.0,117860.0,0.42245457]
[1752887447378,0.06321031,117870.0,117860.0,0.42245457]
[1752887447726,0.05472675,117870.0,117860.0,0.42245457]
[1752887447924,0.06321031,117870.0,117860.0,0.42245457]
[1752887448134,0.06321031,117870.0,117860.0,0.1951459]
[1752887448351,0.06321031,117870.0,117860.0,0.42245457]
[1752887448548,0.07169401,117870.0,117860.0,0.42245457]
[1752887448749,0.06321031,117870.0,117860.0,0.42245457]
[1752887449540,0.05472675,117870.0,117860.0,0.42245457]
[1752887449708,0.04624334,117870.0,117860.0,0.1951459]
[1752887450071,0.05472683,117870.0,117860.0,0.42245457]
[1752887450274,0.06321039,117870.0,117860.0,0.42245457]
[1752887451081,0.04624334,117870.0,117860.0,0.42245457]
[1752887452236,0.06321038,117870.0,117860.0,0.42295457]
[1752887452446,0.06321038,117870.0,117860.0,0.42245457]
[1752887452661,0.05472675,117870.0,117860.0,0.42245457]
[1752887452843,0.06321031,117870.0,117860.0,0.42245457]
[1752887453080,0.07169394,117870.0,117860.0,0.42245457]
[1752887453538,0.04624334,117870.0,117860.0,0.42245457]
[1752887453744,0.05472683,117870.0,117860.0,0.42245457]
[1752887454251,0.03776,117870.0,117860.0,0.42245457]
[1752887454373,0.02558334,117870.0,117860.0,0.65026324]
[1752887454596,0.0171,117870.0,117860.0,0.65026324]
[1752887454808,0.02558327,117870.0,117860.0,0.65026324]
[1752887456752,0.0171,117870.0,117860.0,0.65026324]
[1752887457448,0.002,117870.0,117860.0,0.65026324]
[1752887458141,0.002,117870.0,117860.0,0.73577352]
[1752887460032,0.0183,117870.0,117860.0,0.73577352]
[1752887460459,0.002,117870.0,117860.0,0.73577352]
[1752887461082,0.0183,117870.0,117860.0,0.73577352]
[1752887461484,0.02678327,117870.0,117860.0,0.73577352]
[1752887461705,0.0183,117870.0,117860.0,0.73577352]
[1752887462343,0.002,117870.0,117860.0,0.73577352]
[1752887462968,0.002,117870.0,117860.0,0.73608352]
[1752887463396,0.002,117870.0,117860.0,0.73577352]
[1752887464134,0.0185,117870.0,117860.0,0.73577352]
[1752887464601,0.0185,117870.0,117860.0,0.28115618]
[1752887464739,0.0185,117870.0,117860.0,0.73577352]
[1752887464951,0.02698334,117870.0,117860.0,0.73577352]
[1752887465212,0.03546675,117870.0,117860.0,0.73577352]
[1752887465562,0.05116675,117870.0,117860.0,0.73577352]
[1752887465940,0.0342,117870.0,117860.0,0.73577352]
[1752887466167,0.04268327,117870.0,117860.0,0.73577352]
[1752887466387,0.05116661,117870.0,117860.0,0.73577352]
[1752887466596,0.0342,117870.0,117860.0,0.73577352]
[1752887466804,0.04268334,117870.0,117860.0,0.80397352]
[1752887467023,0.0342,117870.0,117860.0,0.80397352]
[1752887467886,0.05116676,117870.0,117860.0,0.80397352]
[1752887468102,0.05116668,117870.0,117860.0,0.80397352]
[1752887468578,0.04268327,117870.0,117860.0,0.80397352]
[1752887469188,0.04581327,117870.0,117860.0,0.80397352]
[1752887469403,0.04581327,117870.0,117860.0,0.34935618]
[1752887469526,0.0627801,117870.0,117860.0,0.80397352]
[1752887470163,0.06278002,117870.0,117860.0,0.80397352]
[1752887471589,0.07126351,117870.0,117860.0,0.80397352]
[1752887471767,0.07974714,117870.0,117860.0,0.80397352]
[1752887472123,0.08183772,117870.0,117860.0,0.81195773]
[1752887472570,0.07335387,117870.0,117860.0,0.81195773]
[1752887472774,0.08183757,117870.0,117860.0,0.58464906]
[1752887473013,0.20234963,117870.0,117860.0,0.17817734]
[1752887473225,0.21409991,117870.0,117860.0,0.0682]
[1752887473442,0.17689845,117870.0,117860.0,0.22730867]
[1752887473657,0.18666176,117860.0,117850.0,0.00863445]
[1752887473871,0.21107734,117860.0,117850.0,0.07683445]
[1752887474102,0.21629734,117860.0,117850.0,0.25502699]
[1752887474293,0.21629734,117860.0,117850.0,0.27199734]
[1752887474702,0.21629734,117860.0,117850.0,0.27299734]
[1752887474850,0.21629734,117860.0,117850.0,0.50030601]
[1752887475050,0.21629734,117860.0,117850.0,0.28148227]
[1752887475258,0.21629734,117860.0,117850.0,0.27299734]
[1752887475471,0.06357334,117860.0,117850.0,0.28148198]
[1752887475680,0.07205798,117860.0,117850.0,0.50879065]
[1752887475906,0.24175083,117860.0,117850.0,0.50030572]
[1752887476121,0.23326655,117860.0,117850.0,0.4748503]
[1752887476323,0.23326655,117860.0,117850.0,0.48333551]
[1752887476523,0.23326655,117860.0,117850.0,0.49182051]
[1752887476716,0.23326655,117860.0,117850.0,0.48333551]
[1752887476873,0.23326655,117860.0,117850.0,0.49182065]
[1752887477254,0.21629749,117860.0,117850.0,0.48333551]
[1752887477447,0.20781285,117860.0,117850.0,0.4748503]
[1752887477588,0.20781285,117860.0,117850.0,0.4066503]
[1752887477826,0.20781285,117860.0,117850.0,0.22845776]
[1752887478026,0.20781285,117860.0,117850.0,0.06934909]
[1752887478650,0.20781285,117860.0,117850.0,0.29665776]
[1752887479028,0.20781285,117860.0,117850.0,0.06934909]
[1752887479464,0.20781285,117860.0,117850.0,0.29665776]
[1752887481351,0.20781285,117860.0,117850.0,0.30514312]
[1752887481769,0.20781285,117860.0,117850.0,0.07783445]
[1752887481982,0.20781285,117860.0,117850.0,0.30514312]
[1752887482552,0.20781285,117860.0,117850.0,0.31362841]
[1752887482903,0.20781285,117860.0,117850.0,0.30514312]
[1752887483393,0.20781285,117860.0,117850.0,0.29665776]
[1752887484050,0.22478191,117860.0,117850.0,0.30514305]
[1752887484553,0.22478191,117860.0,117850.0,0.31362826]
[1752887484774,0.06357255,117860.0,117850.0,0.50030558]
[1752887484985,0.0550882,117860.0,117850.0,0.50879043]
[1752887485196,0.06357255,117860.0,117850.0,0.50879043]
[1752887486180,0.06357248,117860.0,117850.0,0.50879043]
[1752887486419,0.0550882,117860.0,117850.0,0.50879043]
[1752887486633,0.06357248,117860.0,117850.0,0.50879043]
[1752887487366,0.0550882,117860.0,117850.0,0.50879043]
[1752887488450,0.06357255,117860.0,117850.0,0.50879043]
[1752887489059,0.08054161,117860.0,117850.0,0.28148176]
[1752887489276,0.06357255,117860.0,117850.0,0.50879043]
[1752887489493,0.0550882,117860.0,117850.0,0.50879043]
[1752887489709,0.03596,117870.0,117860.0,0.1951459]
[1752887489932,0.03596,117870.0,117860.0,0.65026324]
[1752887490140,0.03596,117870.0,117860.0,0.42295457]
[1752887490705,0.04444327,117870.0,117860.0,0.42295457]